bitfinex/quotes_SOLUSD_20220307
["timestamp","ask_amount","ask_price","bid_price","bid_amount"]
[1646686637687,1.63935899,81.369,81.315,123.8]
[1646686637987,1.63935899,81.37,81.321,123.8]
[1646686638189,1.63935899,81.375,81.331,2.10936668]
[1646686638387,1.63935899,81.376,81.332,6.25]
[1646686639190,1.63935899,81.377,81.34,18.4417]
[1646686639390,1.63935899,81.378,81.341,0.25]
[1646686639589,1.63935899,81.38,81.342,123.8]
[1646686639789,136.64930922,81.42,81.34,14.43]
[1646686639790,1.63935899,81.389,81.344,123.8]
[1646686639988,1.63935899,81.393,81.345,6.0]
[1646686640188,1.63935899,81.394,81.35,18.439]
[1646686640389,1.63935899,81.394,81.36,14.43]
[1646686640594,1.63935899,81.395,81.361,6.25]
[1646686640990,1.63935899,81.396,81.361,6.25]
[1646686641191,1.63935899,81.399,81.361,6.25]
[1646686641590,27.97974094,81.412,81.361,6.25]
[1646686641591,1.63935899,81.4,81.361,6.25]
[1646686641790,1.63935899,81.4,81.361,0.25]
[1646686642190,1.63935899,81.4,81.361,6.25]
[1646686642591,1.63935899,81.401,81.361,6.25]
[1646686642791,1.63935899,81.402,81.361,6.25]
[1646686642990,0.25,81.401,81.361,24.6632]
[1646686643190,1.63935899,81.404,81.37,18.4355]
[1646686643391,1.63935899,81.405,81.371,0.25]
[1646686643592,1.63935899,81.408,81.371,6.25]
[1646686643790,1.63935899,81.411,81.371,6.25]
[1646686643991,1.63935899,81.413,81.371,6.25]
[1646686644190,29.69396864,81.413,81.371,6.25]
[1646686644693,1.63935899,81.415,81.371,6.25]
[1646686645091,1.63935899,81.416,81.371,6.25]
[1646686645292,6.142,81.415,81.37,14.43]
[1646686645490,4.47549425,81.414,81.353,24.5592]
[1646686645695,1.63935899,81.413,81.354,6.25]
[1646686645895,1.63935899,81.412,81.354,6.25]
[1646686646096,29.33491713,81.411,81.354,6.25]
[1646686646896,29.33491713,81.411,81.36,18.4365]
[1646686647096,29.33491713,81.411,81.361,0.25]
[1646686648299,29.33491713,81.411,81.361,6.25]
[1646686648498,6.143,81.41,81.361,6.25]
[1646686648699,0.25,81.409,81.362,6.0]
[1646686648921,0.25,81.409,81.363,0.25]
[1646686649122,0.25,81.409,81.362,6.0]
[1646686649324,0.25,81.409,81.363,0.25]
[1646686649724,0.25,81.409,81.37,18.436]
[1646686649926,0.25,81.409,81.371,6.25]
[1646686651827,0.25,81.41,81.371,6.25]
[1646686653030,0.25,81.42,81.38,18.4342]
[1646686653230,0.25,81.42,81.381,6.0]
[1646686653430,0.25,81.42,81.371,0.25]
[1646686653637,0.25,81.421,81.371,6.25]
[1646686653831,6.142,81.43,81.371,6.25]
[1646686653832,33.61372547,81.425,81.371,6.25]
[1646686654032,31.97436648,81.425,81.38,18.4338]
[1646686654233,31.97436648,81.425,81.381,6.25]
[1646686654531,22.7639,81.432,81.381,6.25]
[1646686655132,0.25,81.431,81.381,0.25]
[1646686655331,30.67172057,81.428,81.381,0.25]
[1646686655532,0.25,81.427,81.381,0.25]
[1646686655732,24.69930922,81.427,81.38,14.43]
[1646686655933,6.142,81.426,81.38,14.43]
[1646686656133,18.4386,81.42,81.38,14.43]
[1646686656334,0.25,81.419,81.38,14.43]
[1646686656538,6.142,81.418,81.38,14.43]
[1646686656735,0.25,81.417,81.38,14.43]
[1646686656935,6.142,81.416,81.38,14.43]
[1646686657135,0.25,81.415,81.38,14.43]
[1646686657341,0.25,81.415,81.381,6.0]
[1646686658338,0.25,81.426,81.381,6.0]
[1646686658540,1.88935899,81.426,81.381,6.0]
[1646686659642,1.88935899,81.426,81.39,18.4322]
[1646686659839,1.63935899,81.425,81.39,18.4322]
[1646686660040,0.25,81.424,81.39,18.4322]
[1646686660246,1.88935899,81.426,81.39,18.4322]
[1646686660437,1.88935899,81.426,81.391,6.0]
[1646686660738,0.25,81.426,81.391,6.0]
[1646686660940,0.25,81.426,81.308,4.20330876]
[1646686661140,8.97813526,81.425,81.362,0.25]
[1646686661338,1.63935899,81.42,81.362,0.25]
[1646686661543,1.63935899,81.418,81.362,0.25]
[1646686661738,6.393,81.417,81.362,0.25]
[1646686661939,35.71987987,81.416,81.362,0.25]
[1646686662138,0.25,81.415,81.36,14.43]
[1646686662339,0.25,81.415,81.355,24.0612]
[1646686662340,6.143,81.414,81.355,24.0612]
[1646686662642,1.63935899,81.412,81.356,6.0]
[1646686662839,8.03235899,81.411,81.356,6.0]
[1646686663042,18.4404,81.41,81.356,6.0]
[1646686663239,1.63935899,81.405,81.356,6.0]
[1646686663440,0.25,81.404,81.356,6.0]
[1646686663639,0.25,81.404,81.357,0.25]
[1646686664239,1.88935899,81.404,81.357,0.25]
[1646686664440,1.63935899,81.403,81.36,32.8683]
[1646686664641,0.25,81.402,81.361,12.393]
[1646686664839,1.63935899,81.409,81.361,12.393]
[1646686665040,1.63935899,81.41,81.361,12.393]
[1646686665243,1.63935899,81.402,81.362,123.8]
[1646686665441,1.63935899,81.401,81.37,18.4344]
[1646686665639,1.63935899,81.402,81.37,14.43]
[1646686666041,9.42191556,81.424,81.371,90.0]
[1646686666243,6.143,81.424,81.372,6.25]
[1646686666442,3.27891556,81.448,81.372,6.25]
[1646686666641,3.27891556,81.448,81.38,18.4336]
[1646686666842,24.2457,81.449,81.39,14.43]
[1646686667043,6.141,81.436,81.391,6.25]
[1646686667245,6.141,81.44,81.391,6.25]
[1646686667445,6.67859587,81.439,81.391,6.25]
[1646686667668,6.141,81.438,81.391,6.25]
[1646686667848,36.65871408,81.441,81.391,6.25]
[1646686668144,6.92841817,81.44,81.391,6.25]
[1646686668347,0.25,81.44,81.391,6.25]
[1646686668544,0.25,81.445,81.392,129.941]
[1646686668746,0.25,81.448,81.394,123.8]
[1646686668945,0.25,81.448,81.395,12.39]
[1646686668946,6.14,81.447,81.395,12.39]
[1646686669148,0.25,81.446,81.394,6.14]
[1646686669347,36.91954326,81.444,81.395,0.25]
[1646686669547,3.27891556,81.442,81.393,0.25]
[1646686669747,6.391,81.441,81.393,0.25]
[1646686670152,25.11244095,81.44,81.393,0.25]
[1646686670452,13.06954095,81.439,81.391,0.25]
[1646686670649,6.67854095,81.438,81.391,0.25]
[1646686670850,6.391,81.437,81.391,0.25]
[1646686671550,0.25,81.437,81.391,0.25]
[1646686671953,0.25,81.439,81.391,0.25]
[1646686672355,18.4362,81.43,81.37,14.43]
[1646686672569,129.942,81.429,81.354,6.142]
[1646686672753,0.17950125,81.427,81.332,18.1124]
[1646686672957,0.17950125,81.427,81.331,100.0]
[1646686672958,3.27891556,81.416,81.331,100.0]
[1646686673157,123.8,81.407,81.331,100.0]
[1646686673354,123.8,81.389,81.331,100.0]
[1646686673554,123.8,81.387,81.331,100.0]
[1646686673855,0.23759833,81.384,81.301,6.144]
[1646686674053,6.146,81.383,81.292,28.798]
[1646686674256,0.23759833,81.381,81.292,6.146]
[1646686674455,0.29404951,81.378,81.273,6.147]
[1646686674656,0.29404951,81.374,81.271,43.0569]
[1646686674857,3.27891556,81.372,81.274,0.25]
[1646686675055,0.29404951,81.369,81.275,6.148]
[1646686675272,0.29404951,81.366,81.276,0.25]
[1646686675478,18.4603,81.35,81.277,6.148]
[1646686675674,30.21914042,81.349,81.278,6.0]
[1646686676074,30.21914042,81.349,81.273,6.0]
[1646686676276,6.149,81.348,81.274,6.149]
[1646686676475,0.25,81.347,81.275,6.0]
[1646686676678,18.4563,81.34,81.276,6.149]
[1646686676877,3.08613526,81.347,81.246,6.3772154]
[1646686676878,6.399,81.339,81.261,6.149]
[1646686677077,6.149,81.339,81.262,6.25]
[1646686677278,0.25,81.338,81.263,6.15]
[1646686677477,6.15,81.337,81.264,6.25]
[1646686677679,38.72755003,81.336,81.265,6.15]
[1646686677878,6.15,81.335,81.266,6.25]
[1646686678082,18.462,81.33,81.266,6.25]
[1646686678279,6.4,81.329,81.266,6.25]
[1646686678479,6.4,81.329,81.266,0.25]
[1646686678878,6.4,81.329,81.267,6.15]
[1646686679077,6.4,81.329,81.268,6.0]
[1646686679479,6.4,81.329,81.27,18.4576]
[1646686679680,6.4,81.329,81.268,6.0]
[1646686679883,6.4,81.329,81.258,6.0]
[1646686680282,2.83613526,81.328,81.259,0.25]
[1646686680484,6.4,81.327,81.259,0.25]
[1646686681084,130.2,81.327,81.252,6.0]
[1646686681287,6.4,81.327,81.252,6.0]
[1646686681483,6.4,81.327,81.251,6.0]
[1646686681686,18.4615,81.32,81.251,6.0]
[1646686681887,45.16918037,81.319,81.249,22.8524]
[1646686682084,45.16918037,81.319,81.241,6.15]
[1646686682085,44.91918037,81.319,81.241,6.15]
[1646686682285,124.05,81.318,81.242,6.0]
[1646686682486,6.151,81.317,81.242,6.0]
[1646686682687,0.25,81.316,81.224,30.9392]
[1646686682886,18.4655,81.31,81.225,6.152]
[1646686683085,6.402,81.309,81.226,6.0]
[1646686683289,9.23813526,81.309,81.227,0.6826326]
[1646686683486,9.23813526,81.309,81.227,0.9326326]
[1646686683687,9.23813526,81.309,81.228,6.152]
[1646686683885,9.23813526,81.309,81.23,18.4649]
[1646686684085,9.23813526,81.309,81.231,12.152]
[1646686684288,9.23813526,81.309,81.231,6.0]
[1646686684487,9.23813526,81.309,81.232,6.152]
[1646686684685,9.23813526,81.309,81.233,6.0]
[1646686684889,9.23813526,81.309,81.234,6.152]
[1646686685186,9.23813526,81.309,81.235,6.25]
[1646686685386,9.23813526,81.309,81.236,6.152]
[1646686685586,9.23813526,81.309,81.237,6.25]
[1646686685789,9.23813526,81.309,81.238,6.152]
[1646686685986,9.23813526,81.309,81.239,6.25]
[1646686686188,18.4663,81.3,81.24,6.152]
[1646686686387,6.402,81.299,81.241,6.25]
[1646686686792,6.152,81.316,81.242,6.152]
[1646686686987,6.152,81.316,81.243,6.25]
[1646686687188,6.152,81.316,81.244,11.32556631]
[1646686687486,6.152,81.316,81.245,6.25]
[1646686687693,6.152,81.316,81.246,6.151]
[1646686687888,6.152,81.316,81.247,6.25]
[1646686688086,6.152,81.316,81.248,129.951]
[1646686688286,6.152,81.316,81.25,138.23]
[1646686688489,66.40364105,81.317,81.252,123.8]
[1646686688688,62.97028037,81.319,81.254,123.8]
[1646686688888,38.76818037,81.319,81.255,136.201]
[1646686689087,38.76818037,81.319,81.255,129.951]
[1646686689288,38.76818037,81.319,81.257,123.8]
[1646686689489,38.76818037,81.319,81.26,18.4582]
[1646686689688,6.15,81.339,81.262,123.8]
[1646686689891,23.7482,81.341,81.264,123.8]
[1646686690091,23.7482,81.341,81.265,130.05]
[1646686690292,6.149,81.346,81.281,123.8]
[1646686690490,6.149,81.346,81.29,18.4514]
[1646686690691,37.36483481,81.357,81.291,130.05]
[1646686692093,18.4506,81.37,81.301,123.8]
[1646686692293,6.147,81.369,81.303,123.8]
[1646686692593,6.147,81.371,81.305,123.8]
[1646686692797,6.147,81.381,81.307,123.8]
[1646686692995,6.147,81.381,81.308,6.25]
[1646686693194,30.64935896,81.38,81.309,1.89818821]
[1646686693395,6.146,81.379,81.311,123.8]
[1646686693598,6.146,81.379,81.313,123.8]
[1646686693796,47.6929,81.382,81.315,123.8]
[1646686693994,47.6929,81.382,81.316,6.25]
[1646686694194,47.6929,81.382,81.317,123.8]
[1646686694394,47.6929,81.382,81.319,123.8]
[1646686694595,31.4638419,81.381,81.32,24.6946]
[1646686694796,31.4638419,81.381,81.321,6.25]
[1646686694995,35.12175349,81.38,81.24,180.4]
[1646686695197,35.12175349,81.38,81.293,6.25]
[1646686695396,28.97575349,81.379,81.293,6.25]
[1646686695597,6.147,81.378,81.293,6.25]
[1646686695799,18.4532,81.36,81.294,7.06919243]
[1646686695997,28.85206661,81.358,81.295,6.25]
[1646686696201,0.25,81.357,81.295,6.25]
[1646686696598,0.25,81.357,81.295,0.25]
[1646686696799,6.148,81.356,81.295,0.25]
[1646686697000,0.25,81.355,81.294,0.25]
[1646686697299,6.148,81.354,81.294,6.11271517]
[1646686697599,0.25,81.353,81.295,6.0]
[1646686697801,0.25,81.355,81.296,0.25]
[1646686698598,6.148,81.354,81.296,0.25]
[1646686698802,0.25,81.353,81.296,0.25]
[1646686699398,0.25,81.353,81.294,0.25]
[1646686699598,6.148,81.352,81.294,0.25]
[1646686699799,0.25,81.351,81.294,0.25]
[1646686700699,0.25,81.356,81.294,0.25]
[1646686701198,18.4546,81.35,81.294,0.25]
[1646686701421,0.25,81.349,81.294,0.25]
[1646686702199,0.25,81.349,81.3,18.4512]
[1646686702398,0.25,81.349,81.294,0.25]
[1646686702399,0.25,81.349,81.301,6.25]
[1646686702600,0.25,81.369,81.294,0.25]
[1646686702804,6.147,81.368,81.294,0.25]
[1646686703001,0.25,81.367,81.294,0.25]
[1646686703202,18.4524,81.36,81.294,0.25]
[1646686703402,6.398,81.359,81.294,0.25]
[1646686703602,6.398,81.359,81.287,0.25]
[1646686704302,18.454,81.35,81.287,0.25]
[1646686704501,6.398,81.349,81.273,0.25]
[1646686705104,36.48915004,81.348,81.271,48.887]
[1646686705301,18.4562,81.34,81.25,14.43]
[1646686705501,6.4,81.339,81.243,48.887]
[1646686705701,5.89874732,81.338,81.22,145.2311]
[1646686705900,123.8,81.336,81.22,130.8011]
[1646686706102,123.8,81.334,81.22,135.99115897]
[1646686706304,123.8,81.332,81.221,48.2398]
[1646686706503,0.21317288,81.329,81.221,48.2398]
[1646686706705,123.8,81.319,81.256,0.25]
[1646686706903,123.8,81.317,81.256,0.25]
[1646686707104,0.25,81.316,81.221,48.2398]
[1646686707304,129.951,81.315,81.221,48.2398]
[1646686707607,0.25,81.314,81.221,48.2398]
[1646686707807,18.4692,81.3,81.23,18.4681]
[1646686708005,27.90528306,81.299,81.231,6.0]
[1646686708402,6.152,81.298,81.231,6.0]
[1646686708605,0.25,81.297,81.232,0.25]
[1646686709307,27.65528306,81.299,81.232,0.25]
[1646686709504,27.65528306,81.299,81.24,18.4661]
[1646686709705,27.65528306,81.299,81.241,6.25]
[1646686709904,6.152,81.298,81.241,6.25]
[1646686710107,27.65528306,81.299,81.241,6.25]
[1646686710506,27.65528306,81.299,81.241,0.25]
[1646686710507,18.4679,81.29,81.241,0.25]
[1646686710706,6.152,81.289,81.234,0.25]
[1646686710912,6.152,81.289,81.222,6.0]
[1646686711107,0.25,81.288,81.222,6.0]
[1646686711309,0.25,81.296,81.217,22.9788]
[1646686711611,18.4752,81.27,81.154,100.0]
[1646686711811,6.405,81.269,81.195,22.9788]
[1646686712007,32.17700376,81.268,81.195,22.9788]
[1646686712207,130.205,81.267,81.195,22.9788]
[1646686712407,2.83613526,81.268,81.195,22.9788]
[1646686712609,0.22554948,81.294,81.2,18.4745]
[1646686712811,3.27891556,81.324,81.201,6.25]
[1646686713007,6.153,81.313,81.201,98.75661718]
[1646686713210,6.153,81.313,81.206,123.8]
[1646686713507,6.153,81.313,81.205,61.44]
[1646686713508,31.39075009,81.312,81.211,123.8]
[1646686713709,6.152,81.311,81.213,123.8]
[1646686713906,6.152,81.311,81.215,123.8]
[1646686714106,0.25,81.31,81.216,6.25]
[1646686714309,6.152,81.309,81.23,18.4594]
[1646686714508,6.152,81.309,81.231,6.25]
[1646686714509,0.25,81.308,81.231,6.25]
[1646686714709,6.152,81.307,81.217,23.2985]
[1646686714911,0.22554948,81.305,81.218,0.25]
[1646686715110,0.22554948,81.303,81.218,0.25]
[1646686715310,0.22554948,81.301,81.218,0.25]
[1646686715511,123.8,81.299,81.218,0.25]
[1646686715809,124.02554948,81.289,81.218,0.25]
[1646686716011,4.89510695,81.286,81.181,6.0]
[1646686716210,123.8,81.284,81.181,6.0]
[1646686716437,123.8,81.282,81.181,6.0]
[1646686716634,123.8,81.28,81.181,6.0]
[1646686716837,123.8,81.278,81.181,6.0]
[1646686717034,130.205,81.277,81.181,6.0]
[1646686717234,23.7689,81.276,81.182,0.25]
[1646686717534,6.155,81.275,81.182,0.25]
[1646686717734,30.28430535,81.259,81.191,2.10397199]
[1646686717934,6.405,81.258,81.192,6.25]
[1646686718134,6.405,81.258,81.192,0.25]
[1646686719135,123.8,81.257,81.182,0.25]
[1646686719333,6.406,81.256,81.182,0.25]
[1646686719537,6.406,81.256,81.183,6.156]
[1646686719734,6.406,81.256,81.184,6.25]
[1646686719934,6.406,81.256,81.186,1.67725249]
[1646686720135,18.4773,81.25,81.19,18.4769]
[1646686720335,0.25,81.249,81.191,6.406]
[1646686720534,0.25,81.249,81.192,6.0]
[1646686720737,0.25,81.249,81.193,6.406]
[1646686720933,0.25,81.249,81.194,6.0]
[1646686721135,0.25,81.249,81.2,18.4719]
[1646686721336,0.25,81.258,81.201,6.25]
[1646686721535,6.155,81.257,81.201,0.25]
[1646686721735,0.25,81.256,81.201,6.25]
[1646686721936,0.25,81.256,81.202,6.155]
[1646686722139,0.25,81.256,81.203,0.25]
[1646686722338,0.25,81.256,81.204,6.155]
[1646686722537,0.25,81.256,81.205,0.25]
[1646686722741,0.25,81.258,81.206,6.155]
[1646686723038,0.25,81.258,81.207,5.43946949]
[1646686723337,0.25,81.258,81.208,6.155]
[1646686723539,0.25,81.258,81.209,0.25]
[1646686724644,0.25,81.258,81.203,6.405]
[1646686725040,18.4771,81.25,81.203,0.25]
[1646686725242,0.25,81.249,81.199,6.25]
[1646686725643,0.25,81.249,81.199,0.25]
[1646686726346,0.25,81.257,81.199,0.25]
[1646686726545,0.25,81.257,81.2,24.6302]
[1646686726747,23.5189,81.276,81.202,123.8]
[1646686726748,6.155,81.275,81.202,123.8]
[1646686726946,23.5189,81.276,81.204,123.8]
[1646686727148,23.5189,81.276,81.205,12.404]
[1646686727545,36.44152166,81.275,81.22,18.4678]
[1646686727744,36.44152166,81.275,81.221,6.25]
[1646686728345,0.25,81.274,81.221,0.25]
[1646686728546,6.154,81.273,81.23,18.4684]
[1646686728747,0.25,81.272,81.23,18.4684]
[1646686728950,0.25,81.272,81.221,0.25]
[1646686729146,0.25,81.272,81.212,6.25]
[1646686729546,0.25,81.272,81.213,6.154]
[1646686729749,0.25,81.274,81.22,18.4701]
[1646686729949,0.25,81.274,81.221,6.25]
[1646686730147,0.25,81.274,81.214,6.25]
[1646686730547,0.25,81.274,81.214,130.05]
[1646686730747,0.25,81.274,81.214,6.25]
[1646686730948,0.25,81.274,81.214,0.25]
[1646686731148,6.154,81.273,81.214,0.25]
[1646686731348,0.25,81.272,81.214,0.25]
[1646686731549,6.154,81.271,81.214,0.25]
[1646686731750,0.25,81.27,81.214,0.25]
[1646686731950,6.154,81.269,81.214,0.25]
[1646686732149,0.25,81.268,81.22,18.4704]
[1646686732353,0.25,81.268,81.221,0.25]
[1646686733151,6.154,81.298,81.23,18.4684]
[1646686733351,6.154,81.298,81.232,123.8]
[1646686733551,6.154,81.298,81.234,123.8]
[1646686733852,31.77475464,81.298,81.235,6.25]
[1646686734651,0.25,81.297,81.235,0.25]
[1646686734855,0.25,81.297,81.25,18.4619]
[1646686735153,0.25,81.297,81.251,6.25]
[1646686735353,0.25,81.297,81.251,0.25]
[1646686735754,6.152,81.296,81.235,0.25]
[1646686735954,18.4677,81.29,81.235,0.25]
[1646686736155,6.402,81.289,81.235,0.25]
[1646686737657,0.25,81.289,81.235,0.25]
[1646686737856,0.25,81.297,81.235,0.25]
[1646686738258,6.152,81.296,81.235,0.25]
[1646686738457,0.25,81.295,81.235,0.25]
[1646686738657,6.152,81.294,81.235,0.25]
[1646686738856,0.25,81.293,81.235,0.25]
[1646686739056,6.152,81.292,81.235,0.25]
[1646686739257,0.25,81.291,81.24,18.4663]
[1646686739457,6.152,81.29,81.24,18.4663]
[1646686739656,0.25,81.289,81.24,18.4663]
[1646686739858,6.152,81.297,81.24,18.4663]
[1646686740063,0.25,81.296,81.24,18.4663]
[1646686740259,6.152,81.295,81.241,6.0]
[1646686740461,6.152,81.295,81.233,24.3489]
[1646686740462,18.4679,81.29,81.22,14.43]
[1646686740760,6.402,81.289,81.221,6.0]
[1646686741361,6.402,81.289,81.22,6.0]
[1646686741759,18.4704,81.28,81.221,23.2245]
[1646686741959,6.402,81.279,81.222,6.0]
[1646686742159,6.402,81.279,81.223,0.25]
[1646686742959,0.25,81.279,81.223,0.25]
[1646686743162,0.25,81.279,81.23,18.4689]
[1646686743360,0.25,81.28,81.231,6.25]
[1646686743561,0.25,81.297,81.223,0.25]
[1646686743762,6.153,81.296,81.223,0.25]
[1646686744061,6.152,81.297,81.223,0.25]
[1646686744361,18.4678,81.29,81.222,6.0]
[1646686744562,6.152,81.289,81.222,6.0]
[1646686745266,0.25,81.288,81.222,6.0]
[1646686745465,6.152,81.287,81.222,6.0]
[1646686745663,0.25,81.286,81.23,18.4689]
[1646686745864,6.152,81.285,81.231,6.25]
[1646686746064,0.25,81.284,81.231,6.25]
[1646686746365,28.55529253,81.282,81.231,6.25]
[1646686746564,6.402,81.281,81.231,6.25]
[1646686746966,6.402,81.281,81.231,6.0]
[1646686747264,6.402,81.281,81.24,18.4663]
[1646686747464,0.25,81.281,81.24,18.4663]
[1646686747665,0.25,81.297,81.24,18.4663]
[1646686747868,6.152,81.296,81.24,18.4663]
[1646686748066,35.74617427,81.295,81.24,18.4663]
[1646686748266,6.152,81.294,81.241,6.0]
[1646686748565,0.25,81.293,81.241,6.0]
[1646686748765,6.152,81.292,81.241,6.0]
[1646686748971,0.25,81.291,81.241,6.0]
[1646686749770,6.152,81.29,81.241,6.0]
[1646686749967,0.25,81.289,81.241,6.0]
[1646686750489,0.25,81.289,81.23,18.4685]
[1646686750687,0.25,81.289,81.231,6.25]
[1646686750885,6.152,81.288,81.231,0.25]
[1646686751088,0.25,81.287,81.231,0.25]
[1646686751288,6.152,81.286,81.231,0.25]
[1646686751488,33.37036131,81.279,81.222,6.0]
[1646686751687,6.402,81.278,81.18,14.43]
[1646686751888,123.8,81.277,81.199,23.7174]
[1646686752087,0.25,81.276,81.199,23.7174]
[1646686752486,18.4779,81.26,81.199,23.7174]
[1646686752687,34.80801241,81.259,81.199,23.7174]
[1646686754190,18.4767,81.25,81.199,23.7174]
[1646686754489,6.405,81.249,81.199,23.7174]
[1646686758094,6.405,81.249,81.2,0.25]
[1646686758592,6.405,81.249,81.2,18.726]
[1646686758793,0.25,81.249,81.2,18.726]
[1646686759593,0.25,81.249,81.2,18.476]
[1646686762998,0.25,81.257,81.2,18.476]
[1646686763297,6.155,81.256,81.199,23.7174]
[1646686763600,0.25,81.255,81.199,23.7174]
[1646686763795,6.155,81.254,81.199,23.7174]
[1646686763996,0.25,81.253,81.199,23.7174]
[1646686764296,18.4766,81.25,81.199,23.7174]
[1646686764496,0.25,81.249,81.2,18.4749]
[1646686764698,0.25,81.253,81.201,0.25]
[1646686765295,28.40401241,81.259,81.201,0.25]
[1646686765698,123.8,81.258,81.17,14.43]
[1646686765897,6.156,81.257,81.177,22.8927]
[1646686766301,18.4768,81.25,81.177,22.8927]
[1646686766500,6.156,81.249,81.177,22.8927]
[1646686766699,0.25,81.248,81.177,22.8927]
[1646686766907,6.156,81.247,81.177,22.6427]
[1646686767102,124.05,81.246,81.14,18.3914]
[1646686767401,123.8,81.229,81.14,18.3914]
[1646686767608,123.8,81.219,81.121,48.67143841]
[1646686767802,61.6333,81.22,81.121,22.6427]
[1646686767803,123.8,81.217,81.121,22.6427]
[1646686768003,0.31812708,81.214,81.121,22.6427]
[1646686768202,6.16,81.213,81.121,22.6427]
[1646686768404,0.56812708,81.212,81.121,22.6427]
[1646686768602,6.16,81.211,81.121,22.6427]
[1646686768806,123.8,81.209,81.122,6.0]
[1646686769005,6.41,81.208,81.122,6.0]
[1646686769204,0.25,81.207,81.123,0.25]
[1646686769403,6.16,81.206,81.123,0.25]
[1646686769609,0.25,81.205,81.123,0.25]
[1646686769805,6.16,81.204,81.123,0.25]
[1646686770005,0.25,81.203,81.123,0.25]
[1646686770208,0.25,81.203,81.13,18.4898]
[1646686770209,6.16,81.202,81.13,18.4898]
[1646686770405,0.25,81.201,81.131,6.25]
[1646686770606,6.16,81.2,81.123,0.25]
[1646686770805,0.25,81.199,81.123,0.25]
[1646686771007,6.16,81.198,81.123,0.25]
[1646686771204,18.4922,81.19,81.123,0.25]
[1646686771409,6.41,81.189,81.123,0.25]
[1646686771804,38.27421613,81.188,81.123,0.25]
[1646686772005,6.41,81.187,81.123,0.25]
[1646686772804,6.41,81.187,81.13,18.4908]
[1646686773006,6.41,81.187,81.131,0.25]
[1646686773205,6.16,81.187,81.131,0.25]
[1646686773904,6.16,81.187,81.131,6.25]
[1646686774109,38.27421613,81.188,81.131,6.25]
[1646686774604,0.25,81.187,81.131,6.25]
[1646686775806,0.25,81.187,81.132,6.0]
[1646686776006,0.25,81.187,81.133,0.25]
[1646686776209,6.16,81.186,81.122,6.0]
[1646686776407,0.25,81.185,81.122,6.0]
[1646686776612,6.16,81.184,81.112,6.0]
[1646686776808,0.24967149,81.182,81.095,1.15196321]